[Event "*** Titled Tuesday Blitz"]
[Site "Chess.com"]
[Date "2020.10.27"]
[Round "5"]
[White "InitiatingASC"]
[Black "TengisChess"]
[Result "0-1"]
[WhiteElo "2410"]
[BlackElo "2602"]
[TimeControl "180+1"]
[EndTime "10:56:15 PDT"]
[Termination "TengisChess won by resignation"]

1. Nf3 {[%clk 0:03:00.9]} 1... Nf6 {[%clk 0:02:59.5]} 2. b3 {[%clk 0:03:00.4]}
2... b5 {[%clk 0:02:59]} 3. Bb2 {[%clk 0:02:58]} 3... Bb7 {[%clk 0:02:56.7]} 4.
e3 {[%clk 0:02:57.3]} 4... a6 {[%clk 0:02:54.1]} 5. c4 {[%clk 0:02:55.6]} 5...
bxc4 {[%clk 0:02:51.3]} 6. Bxc4 {[%clk 0:02:55]} 6... e6 {[%clk 0:02:48.5]} 7.
O-O {[%clk 0:02:53.8]} 7... Be7 {[%clk 0:02:45.8]} 8. Be2 {[%clk 0:02:43.7]}
8... O-O {[%clk 0:02:42.9]} 9. d3 {[%clk 0:02:43.7]} 9... d5 {[%clk 0:02:39.9]}
10. Nbd2 {[%clk 0:02:44.1]} 10... c5 {[%clk 0:02:36.1]} 11. Rc1 {[%clk
0:02:44.4]} 11... Nbd7 {[%clk 0:02:34]} 12. Qc2 {[%clk 0:02:44.4]} 12... Bd6
{[%clk 0:02:29.2]} 13. Qb1 {[%clk 0:02:42.2]} 13... h6 {[%clk 0:02:26.9]} 14.
Rfe1 {[%clk 0:02:39.7]} 14... a5 {[%clk 0:02:22.7]} 15. Nf1 {[%clk 0:02:37.1]}
15... a4 {[%clk 0:02:20]} 16. Bd1 {[%clk 0:02:37.7]} 16... Bc6 {[%clk 0:02:17]}
17. Ng3 {[%clk 0:02:35.2]} 17... axb3 {[%clk 0:02:13.4]} 18. Bxb3 {[%clk
0:02:30.6]} 18... Qb6 {[%clk 0:02:10.3]} 19. e4 {[%clk 0:02:20.9]} 19... d4
{[%clk 0:02:02]} 20. Nd2 {[%clk 0:02:16.3]} 20... Bf4 {[%clk 0:01:57.7]} 21. Nc4
{[%clk 0:02:10.3]} 21... Qa6 {[%clk 0:01:47.5]} 22. Rc2 {[%clk 0:02:10.3]} 22...
Rfb8 {[%clk 0:01:44.1]} 23. Bc1 {[%clk 0:02:10.3]} 23... Bc7 {[%clk 0:01:40.3]}
24. f4 {[%clk 0:02:03.8]} 24... Ba4 {[%clk 0:01:35.6]} 25. Rb2 {[%clk
0:02:01.9]} 25... Bb5 {[%clk 0:01:32.1]} 26. Rf1 {[%clk 0:01:56.4]} 26... Nb6
{[%clk 0:01:28.8]} 27. f5 {[%clk 0:01:18.8]} 27... Nxc4 {[%clk 0:01:16.7]} 28.
Bxc4 {[%clk 0:01:14.8]} 28... Bxc4 {[%clk 0:01:13.9]} 29. dxc4 {[%clk
0:01:13.4]} 29... Qxc4 {[%clk 0:01:13.4]} 30. fxe6 {[%clk 0:01:08.7]} 30... Qxe6
{[%clk 0:01:12.2]} 31. Rxb8+ {[%clk 0:00:43.3]} 31... Rxb8 {[%clk 0:01:13.1]}
32. Qc2 {[%clk 0:00:43.8]} 32... c4 {[%clk 0:01:04.8]} 33. Bb2 {[%clk
0:00:20.8]} 33... d3 {[%clk 0:00:58]} 34. Qc3 {[%clk 0:00:20.8]} 34... Bxg3
{[%clk 0:00:49.9]} 35. hxg3 {[%clk 0:00:20.3]} 35... Qxe4 {[%clk 0:00:47]} 36.
Rxf6 {[%clk 0:00:17.6]} 36... Rxb2 {[%clk 0:00:38.5]} 37. Qxb2 {[%clk
0:00:12.1]} 37... gxf6 {[%clk 0:00:36.4]} 38. Qxf6 {[%clk 0:00:12.1]} 38... Qe3+
{[%clk 0:00:32.4]} 39. Kh2 {[%clk 0:00:11.7]} 39... d2 {[%clk 0:00:32.3]} 40.
Qd8+ {[%clk 0:00:07.8]} 40... Kg7 {[%clk 0:00:32.4]} 41. Qd7 {[%clk 0:00:06.1]}
41... c3 {[%clk 0:00:32.2]} 42. Qg4+ {[%clk 0:00:06.2]} 42... Qg5 {[%clk
0:00:29.8]} 43. Qd4+ {[%clk 0:00:05.9]} 43... Qf6 {[%clk 0:00:29.9]} 44. Qg4+
{[%clk 0:00:05.5]} 44... Qg6 {[%clk 0:00:29.4]} 45. Qd4+ {[%clk 0:00:05.4]}
45... Kh7 {[%clk 0:00:29.7]} 46. Qa4 {[%clk 0:00:02.7]} 46... Qh5+ {[%clk
0:00:28.9]} 0-1

[Event "*** Titled Tuesday Blitz"]
[Site "Chess.com"]
[Date "2020.10.27"]
[Round "5"]
[White "LuisFSiles"]
[Black "FontVella8"]
[Result "0-1"]
[WhiteElo "2290"]
[BlackElo "2482"]
[TimeControl "180+1"]
[EndTime "10:56:17 PDT"]
[Termination "FontVella8 won by checkmate"]

1. e4 {[%clk 0:03:00]} 1... c6 {[%clk 0:02:58.8]} 2. d4 {[%clk 0:02:59.3]} 2...
d5 {[%clk 0:02:59.4]} 3. exd5 {[%clk 0:02:59.5]} 3... cxd5 {[%clk 0:02:59.8]} 4.
c4 {[%clk 0:02:59.1]} 4... Nf6 {[%clk 0:02:59.4]} 5. Nc3 {[%clk 0:02:58.9]} 5...
e6 {[%clk 0:02:59.4]} 6. Nf3 {[%clk 0:02:58.3]} 6... Be7 {[%clk 0:02:59.9]} 7.
cxd5 {[%clk 0:02:58.3]} 7... Nxd5 {[%clk 0:02:59.4]} 8. Bd3 {[%clk 0:02:58.7]}
8... O-O {[%clk 0:02:59.2]} 9. O-O {[%clk 0:02:58.3]} 9... Nc6 {[%clk
0:02:59.5]} 10. Re1 {[%clk 0:02:55.1]} 10... g6 {[%clk 0:02:56.9]} 11. Bh6
{[%clk 0:02:37]} 11... Re8 {[%clk 0:02:56.6]} 12. Bc4 {[%clk 0:02:07.7]} 12...
Nb6 {[%clk 0:02:49.8]} 13. Bb3 {[%clk 0:02:04.7]} 13... Bf6 {[%clk 0:02:50]} 14.
Ne4 {[%clk 0:01:39.4]} 14... Bh8 {[%clk 0:02:34.6]} 15. Bg5 {[%clk 0:01:28.8]}
15... f6 {[%clk 0:02:19.3]} 16. Bh6 {[%clk 0:01:11.9]} 16... Nb4 {[%clk
0:02:16]} 17. h4 {[%clk 0:00:51.5]} 17... N4d5 {[%clk 0:02:07.2]} 18. h5 {[%clk
0:00:50.9]} 18... Qe7 {[%clk 0:01:50.2]} 19. Qd3 {[%clk 0:00:37]} 19... Bg7
{[%clk 0:01:36.2]} 20. Bd2 {[%clk 0:00:25.4]} 20... Bd7 {[%clk 0:01:21.2]} 21.
Nc5 {[%clk 0:00:23.8]} 21... gxh5 {[%clk 0:01:13.7]} 22. Re4 {[%clk 0:00:18.8]}
22... Qf7 {[%clk 0:01:09.9]} 23. Rae1 {[%clk 0:00:18.3]} 23... a6 {[%clk
0:00:49.7]} 24. a4 {[%clk 0:00:17.1]} 24... Nc7 {[%clk 0:00:29.6]} 25. a5 {[%clk
0:00:16.3]} 25... Nbd5 {[%clk 0:00:29.9]} 26. Nxb7 {[%clk 0:00:14.8]} 26... Bf8
{[%clk 0:00:30]} 27. Qe2 {[%clk 0:00:13.5]} 27... Bb5 {[%clk 0:00:28]} 28. Bc4
{[%clk 0:00:13.7]} 28... Bc6 {[%clk 0:00:28.1]} 29. Nc5 {[%clk 0:00:13.3]} 29...
Bxc5 {[%clk 0:00:28]} 30. dxc5 {[%clk 0:00:13.1]} 30... Rab8 {[%clk 0:00:24]}
31. b3 {[%clk 0:00:11.5]} 31... Bb5 {[%clk 0:00:18.2]} 32. Rh4 {[%clk
0:00:09.9]} 32... Bxc4 {[%clk 0:00:18]} 33. Qxc4 {[%clk 0:00:10.8]} 33... e5
{[%clk 0:00:15.7]} 34. Qe4 {[%clk 0:00:10.2]} 34... Qg6 {[%clk 0:00:13.6]} 35.
Qe2 {[%clk 0:00:09.1]} 35... Rxb3 {[%clk 0:00:12.1]} 36. Qc4 {[%clk 0:00:08.6]}
36... Reb8 {[%clk 0:00:11.1]} 37. Nxe5 {[%clk 0:00:08.2]} 37... fxe5 {[%clk
0:00:09.8]} 38. Rxe5 {[%clk 0:00:09.1]} 38... R8b4 {[%clk 0:00:06.2]} 39. Qe2
{[%clk 0:00:06.4]} 39... Qb1+ {[%clk 0:00:04.5]} 40. Kh2 {[%clk 0:00:05.7]}
40... Rxh4# {[%clk 0:00:04.5]} 0-1

[Event "*** Titled Tuesday Blitz"]
[Site "Chess.com"]
[Date "2020.10.27"]
[Round "5"]
[White "enriquetejedor"]
[Black "KaterynaLagno"]
[Result "1-0"]
[WhiteElo "2481"]
[BlackElo "2673"]
[TimeControl "180+1"]
[EndTime "10:56:18 PDT"]
[Termination "enriquetejedor won by checkmate"]

1. e4 {[%clk 0:02:58.9]} 1... e5 {[%clk 0:02:59.9]} 2. Nf3 {[%clk 0:02:58.5]}
2... Nc6 {[%clk 0:03:00.5]} 3. Bc4 {[%clk 0:02:53.6]} 3... Nf6 {[%clk
0:02:59.7]} 4. d3 {[%clk 0:02:52.9]} 4... Be7 {[%clk 0:02:59.6]} 5. O-O {[%clk
0:02:51.2]} 5... O-O {[%clk 0:02:59.7]} 6. Nc3 {[%clk 0:02:43.7]} 6... d6 {[%clk
0:02:58.4]} 7. a3 {[%clk 0:02:41.8]} 7... Kh8 {[%clk 0:02:56.7]} 8. Kh1 {[%clk
0:02:33.9]} 8... Ng8 {[%clk 0:02:55.7]} 9. d4 {[%clk 0:02:24.9]} 9... Bg4 {[%clk
0:02:54.3]} 10. dxe5 {[%clk 0:02:18.2]} 10... dxe5 {[%clk 0:02:46.9]} 11. Be3
{[%clk 0:02:10.9]} 11... Nd4 {[%clk 0:02:37.4]} 12. Bxd4 {[%clk 0:01:59.5]}
12... Bxf3 {[%clk 0:02:37]} 13. Qxf3 {[%clk 0:01:55.3]} 13... exd4 {[%clk
0:02:37]} 14. Nd5 {[%clk 0:01:48.5]} 14... Bd6 {[%clk 0:02:29.8]} 15. Rad1
{[%clk 0:01:39.5]} 15... c6 {[%clk 0:02:30]} 16. Nf4 {[%clk 0:01:35.4]} 16...
Qf6 {[%clk 0:02:19.1]} 17. Ne2 {[%clk 0:01:31.8]} 17... Qh6 {[%clk 0:02:12.9]}
18. g3 {[%clk 0:01:30.7]} 18... c5 {[%clk 0:02:13.3]} 19. c3 {[%clk 0:01:29.5]}
19... dxc3 {[%clk 0:02:06.3]} 20. Nxc3 {[%clk 0:01:22.5]} 20... Be5 {[%clk
0:02:06.4]} 21. Rd5 {[%clk 0:01:11.3]} 21... Bd4 {[%clk 0:02:04]} 22. Ne2 {[%clk
0:01:01.7]} 22... Nf6 {[%clk 0:01:58.1]} 23. Nxd4 {[%clk 0:00:47.7]} 23... Nxd5
{[%clk 0:01:51.8]} 24. Nf5 {[%clk 0:00:45]} 24... Qf6 {[%clk 0:01:52.4]} 25.
Bxd5 {[%clk 0:00:40.2]} 25... g6 {[%clk 0:01:48.9]} 26. Nh4 {[%clk 0:00:38]}
26... Qxb2 {[%clk 0:01:49.5]} 27. Kg2 {[%clk 0:00:30.7]} 27... Rad8 {[%clk
0:01:49.3]} 28. Qe3 {[%clk 0:00:20.1]} 28... b6 {[%clk 0:01:46]} 29. Rd1 {[%clk
0:00:19.5]} 29... c4 {[%clk 0:01:42.5]} 30. a4 {[%clk 0:00:15.7]} 30... c3
{[%clk 0:01:42.6]} 31. Rc1 {[%clk 0:00:15.8]} 31... c2 {[%clk 0:01:42]} 32. Nf3
{[%clk 0:00:13.1]} 32... Rfe8 {[%clk 0:01:38.9]} 33. Bxf7 {[%clk 0:00:11.4]}
33... Rd1 {[%clk 0:01:35.3]} 34. Rxc2 {[%clk 0:00:09.5]} 34... Qxc2 {[%clk
0:01:30]} 35. Bxe8 {[%clk 0:00:08.9]} 35... Qc4 {[%clk 0:01:30.7]} 36. Bb5
{[%clk 0:00:07.7]} 36... Qc7 {[%clk 0:01:17.8]} 37. e5 {[%clk 0:00:05.8]} 37...
Qe7 {[%clk 0:00:41.7]} 38. Qe2 {[%clk 0:00:04.4]} 38... Rd8 {[%clk 0:00:36.9]}
39. h4 {[%clk 0:00:04.5]} 39... h6 {[%clk 0:00:37.3]} 40. Qe3 {[%clk 0:00:04.5]}
40... Kh7 {[%clk 0:00:37.5]} 41. Bd3 {[%clk 0:00:04.6]} 41... Kg7 {[%clk
0:00:33.7]} 42. h5 {[%clk 0:00:04.5]} 42... g5 {[%clk 0:00:33.4]} 43. Qe4 {[%clk
0:00:04.3]} 43... Kh8 {[%clk 0:00:31.4]} 44. Qg6 {[%clk 0:00:03.9]} 44... Qg7
{[%clk 0:00:31.6]} 45. Qe4 {[%clk 0:00:03.5]} 45... Qd7 {[%clk 0:00:27.7]} 46.
Bc2 {[%clk 0:00:03]} 46... Qd5 {[%clk 0:00:27.4]} 47. Qh7# {[%clk 0:00:02.7]}
1-0

[Event "*** Titled Tuesday Blitz"]
[Site "Chess.com"]
[Date "2020.10.27"]
[Round "5"]
[White "midedu"]
[Black "szefru"]
[Result "0-1"]
[WhiteElo "2013"]
[BlackElo "2266"]
[TimeControl "180+1"]
[EndTime "10:56:18 PDT"]
[Termination "szefru won on time"]

1. e4 {[%clk 0:03:00.9]} 1... Nf6 {[%clk 0:02:31]} 2. e5 {[%clk 0:03:00.3]} 2...
Nd5 {[%clk 0:02:30.9]} 3. d4 {[%clk 0:03:00.9]} 3... d6 {[%clk 0:02:31]} 4. Nf3
{[%clk 0:03:01.4]} 4... g6 {[%clk 0:02:30.8]} 5. c4 {[%clk 0:03:01]} 5... Nb6
{[%clk 0:02:31.2]} 6. exd6 {[%clk 0:02:58.5]} 6... cxd6 {[%clk 0:02:32.1]} 7.
Be2 {[%clk 0:02:58.4]} 7... Bg7 {[%clk 0:02:32.6]} 8. Nc3 {[%clk 0:02:55.2]}
8... O-O {[%clk 0:02:32.7]} 9. O-O {[%clk 0:02:54.3]} 9... Nc6 {[%clk
0:02:31.9]} 10. h3 {[%clk 0:02:53.1]} 10... e5 {[%clk 0:02:31.9]} 11. d5 {[%clk
0:02:48.3]} 11... Ne7 {[%clk 0:02:31.9]} 12. a4 {[%clk 0:02:42.2]} 12... f5
{[%clk 0:02:28.8]} 13. a5 {[%clk 0:02:39.3]} 13... Nd7 {[%clk 0:02:28.9]} 14. b4
{[%clk 0:02:31.5]} 14... h6 {[%clk 0:02:27.6]} 15. Re1 {[%clk 0:02:16.2]} 15...
g5 {[%clk 0:02:05.4]} 16. Ra3 {[%clk 0:02:11.3]} 16... Ng6 {[%clk 0:02:05.5]}
17. Bf1 {[%clk 0:02:08.3]} 17... e4 {[%clk 0:01:53.6]} 18. Nd4 {[%clk
0:02:06.9]} 18... Nde5 {[%clk 0:01:53.9]} 19. c5 {[%clk 0:01:51.6]} 19... Nf4
{[%clk 0:01:44]} 20. Bxf4 {[%clk 0:01:48.7]} 20... gxf4 {[%clk 0:01:43.3]} 21.
Ndb5 {[%clk 0:01:41.3]} 21... Nf7 {[%clk 0:01:32.9]} 22. Qh5 {[%clk 0:01:29.7]}
22... a6 {[%clk 0:01:29.3]} 23. Nxd6 {[%clk 0:01:03.5]} 23... Nxd6 {[%clk
0:01:29.4]} 24. cxd6 {[%clk 0:01:03.6]} 24... Qxd6 {[%clk 0:01:30.3]} 25. Rb3
{[%clk 0:01:02.4]} 25... Bd7 {[%clk 0:01:22.9]} 26. Reb1 {[%clk 0:00:32.5]}
26... Rac8 {[%clk 0:01:22.4]} 27. Nd1 {[%clk 0:00:26.8]} 27... Be8 {[%clk
0:01:18]} 28. Qh4 {[%clk 0:00:21.2]} 28... Qxd5 {[%clk 0:01:08.1]} 29. Qxf4
{[%clk 0:00:20.3]} 29... Ba4 {[%clk 0:01:01.5]} 30. Ne3 {[%clk 0:00:13.4]} 30...
Qf7 {[%clk 0:00:50.3]} 31. Ra3 {[%clk 0:00:12.9]} 31... Bc6 {[%clk 0:00:48.1]}
32. b5 {[%clk 0:00:12.9]} 32... axb5 {[%clk 0:00:45.4]} 33. Bxb5 {[%clk
0:00:12]} 33... Bxb5 {[%clk 0:00:42.9]} 34. Rxb5 {[%clk 0:00:11.9]} 34... Rc1+
{[%clk 0:00:43]} 35. Kh2 {[%clk 0:00:11.3]} 35... Qe7 {[%clk 0:00:35.4]} 36.
Rab3 {[%clk 0:00:09]} 36... Qg5 {[%clk 0:00:27.8]} 37. Qxg5 {[%clk 0:00:06.1]}
37... hxg5 {[%clk 0:00:28.7]} 38. Nxf5 {[%clk 0:00:06]} 38... Bf6 {[%clk
0:00:26.9]} 39. Rxb7 {[%clk 0:00:04.1]} 39... Be5+ {[%clk 0:00:26.9]} 40. Ng3
{[%clk 0:00:04]} 40... Rxf2 {[%clk 0:00:24.1]} 0-1

[Event "*** Titled Tuesday Blitz"]
[Site "Chess.com"]
[Date "2020.10.27"]
[Round "5"]
[White "poppy73"]
[Black "LastHeroJr"]
[Result "0-1"]
[WhiteElo "2219"]
[BlackElo "2390"]
[TimeControl "180+1"]
[EndTime "10:56:18 PDT"]
[Termination "LastHeroJr won on time"]

1. e4 {[%clk 0:03:00.9]} 1... Nc6 {[%clk 0:02:50.1]} 2. Nf3 {[%clk 0:02:57]}
2... d6 {[%clk 0:02:49.7]} 3. d4 {[%clk 0:02:56]} 3... Nf6 {[%clk 0:02:49.6]} 4.
Nc3 {[%clk 0:02:54.6]} 4... g6 {[%clk 0:02:49.4]} 5. d5 {[%clk 0:02:51.7]} 5...
Nb8 {[%clk 0:02:48.9]} 6. Be3 {[%clk 0:02:46.5]} 6... Bg7 {[%clk 0:02:41.6]} 7.
Bd3 {[%clk 0:02:43.9]} 7... O-O {[%clk 0:02:40.6]} 8. O-O {[%clk 0:02:43.9]}
8... c6 {[%clk 0:02:36.9]} 9. dxc6 {[%clk 0:02:38.6]} 9... bxc6 {[%clk
0:02:29.7]} 10. Re1 {[%clk 0:02:35.4]} 10... Nbd7 {[%clk 0:02:21.6]} 11. Ne2
{[%clk 0:02:13.9]} 11... e5 {[%clk 0:02:12.2]} 12. c4 {[%clk 0:02:13.4]} 12...
Ng4 {[%clk 0:02:01.5]} 13. Bg5 {[%clk 0:02:08.2]} 13... Qb6 {[%clk 0:02:01.1]}
14. Bh4 {[%clk 0:02:03.8]} 14... Qxb2 {[%clk 0:01:57.2]} 15. h3 {[%clk
0:02:00.9]} 15... Ngf6 {[%clk 0:01:56]} 16. Rb1 {[%clk 0:01:57]} 16... Qxa2
{[%clk 0:01:45.8]} 17. Ra1 {[%clk 0:01:49.2]} 17... Qb2 {[%clk 0:01:45.2]} 18.
Rb1 {[%clk 0:01:46.5]} 18... Qa3 {[%clk 0:01:45.1]} 19. Rb3 {[%clk 0:01:40.8]}
19... Qa5 {[%clk 0:01:35.3]} 20. Qc1 {[%clk 0:01:29.7]} 20... Nc5 {[%clk
0:01:32.2]} 21. Ra3 {[%clk 0:01:29.3]} 21... Qc7 {[%clk 0:01:13.7]} 22. Qe3
{[%clk 0:01:23.9]} 22... Nfd7 {[%clk 0:01:04.8]} 23. Rea1 {[%clk 0:01:20.9]}
23... Re8 {[%clk 0:01:03.7]} 24. Nc3 {[%clk 0:01:13.2]} 24... Nf8 {[%clk
0:01:00.9]} 25. Na4 {[%clk 0:01:07]} 25... Nxa4 {[%clk 0:01:00.8]} 26. Rxa4
{[%clk 0:01:05.4]} 26... a6 {[%clk 0:01:01.3]} 27. c5 {[%clk 0:00:56.7]} 27...
d5 {[%clk 0:00:51.5]} 28. Bxa6 {[%clk 0:00:54.8]} 28... d4 {[%clk 0:00:43.4]}
29. Qd3 {[%clk 0:00:49.3]} 29... Ne6 {[%clk 0:00:39.8]} 30. Qc4 {[%clk
0:00:37.8]} 30... Bf8 {[%clk 0:00:33]} 31. Bxc8 {[%clk 0:00:36.5]} 31... Rxa4
{[%clk 0:00:32.7]} 32. Rxa4 {[%clk 0:00:30.4]} 32... Rxc8 {[%clk 0:00:32.7]} 33.
Bf6 {[%clk 0:00:25.1]} 33... Nxc5 {[%clk 0:00:32.6]} 34. Bxe5 {[%clk 0:00:23.8]}
34... Qd7 {[%clk 0:00:29.6]} 35. Ra5 {[%clk 0:00:13.2]} 35... Nxe4 {[%clk
0:00:25.7]} 36. Bxd4 {[%clk 0:00:13.5]} 36... c5 {[%clk 0:00:22.8]} 37. Be3
{[%clk 0:00:08.1]} 37... Qd1+ {[%clk 0:00:20.4]} 38. Kh2 {[%clk 0:00:07.7]}
38... Bd6+ {[%clk 0:00:20.4]} 39. g3 {[%clk 0:00:07.8]} 39... Qxf3 {[%clk
0:00:20.2]} 0-1

[Event "*** Titled Tuesday Blitz"]
[Site "Chess.com"]
[Date "2020.10.27"]
[Round "5"]
[White "Leonid_Starozhilov"]
[Black "Shield12"]
[Result "0-1"]
[WhiteElo "2639"]
[BlackElo "2829"]
[TimeControl "180+1"]
[EndTime "10:56:19 PDT"]
[Termination "Shield12 won by resignation"]

1. e4 {[%clk 0:03:00.9]} 1... c5 {[%clk 0:03:00.2]} 2. Nf3 {[%clk 0:03:01]} 2...
d6 {[%clk 0:03:00.8]} 3. Bb5+ {[%clk 0:03:00.9]} 3... Bd7 {[%clk 0:03:00.9]} 4.
Bxd7+ {[%clk 0:02:59.4]} 4... Qxd7 {[%clk 0:03:01.8]} 5. O-O {[%clk 0:03:00.2]}
5... Nc6 {[%clk 0:03:00.4]} 6. c4 {[%clk 0:03:00.2]} 6... g6 {[%clk 0:02:57.8]}
7. d4 {[%clk 0:02:58]} 7... cxd4 {[%clk 0:02:58.7]} 8. Nxd4 {[%clk 0:02:58.8]}
8... Bg7 {[%clk 0:02:59.6]} 9. Be3 {[%clk 0:02:58.4]} 9... Nf6 {[%clk
0:02:59.3]} 10. f3 {[%clk 0:02:56.4]} 10... Rc8 {[%clk 0:02:54.4]} 11. Nc3
{[%clk 0:02:48]} 11... O-O {[%clk 0:02:46.6]} 12. b3 {[%clk 0:02:46.1]} 12... a6
{[%clk 0:02:46.4]} 13. Qd3 {[%clk 0:02:41.7]} 13... Rfd8 {[%clk 0:02:45.2]} 14.
Rac1 {[%clk 0:02:39.7]} 14... e6 {[%clk 0:02:44.1]} 15. Rfd1 {[%clk 0:02:17.3]}
15... Qe7 {[%clk 0:02:37.3]} 16. Nxc6 {[%clk 0:02:03.6]} 16... bxc6 {[%clk
0:02:28.4]} 17. Bf2 {[%clk 0:01:55.6]} 17... Qb7 {[%clk 0:02:26.5]} 18. Qe2
{[%clk 0:01:52.6]} 18... Qc7 {[%clk 0:02:16.3]} 19. Be3 {[%clk 0:01:47.6]} 19...
Nd7 {[%clk 0:02:13.3]} 20. Na4 {[%clk 0:01:47.5]} 20... c5 {[%clk 0:02:10.1]}
21. Bg5 {[%clk 0:01:30.3]} 21... Re8 {[%clk 0:02:05.2]} 22. Bf4 {[%clk
0:01:26.4]} 22... Bd4+ {[%clk 0:02:01.6]} 23. Kh1 {[%clk 0:01:24.8]} 23... Ne5
{[%clk 0:02:00]} 24. Rd2 {[%clk 0:01:15.3]} 24... Qe7 {[%clk 0:01:58]} 25. Rcd1
{[%clk 0:01:14.3]} 25... Rcd8 {[%clk 0:01:57]} 26. Qe1 {[%clk 0:01:02.5]} 26...
Nc6 {[%clk 0:01:52.6]} 27. Qg3 {[%clk 0:00:51.9]} 27... Kg7 {[%clk 0:01:51.1]}
28. Re2 {[%clk 0:00:44.2]} 28... h6 {[%clk 0:01:44.3]} 29. Be3 {[%clk 0:00:43]}
29... Qf6 {[%clk 0:01:40.7]} 30. Qf4 {[%clk 0:00:36.9]} 30... Qxf4 {[%clk
0:01:34.1]} 31. Bxf4 {[%clk 0:00:37.8]} 31... f5 {[%clk 0:01:33.3]} 32. Rde1
{[%clk 0:00:33.5]} 32... e5 {[%clk 0:01:31.2]} 33. Bd2 {[%clk 0:00:27]} 33...
Rf8 {[%clk 0:01:28.5]} 34. Nb6 {[%clk 0:00:24.6]} 34... Ne7 {[%clk 0:01:26.4]}
35. Nd5 {[%clk 0:00:22]} 35... Nxd5 {[%clk 0:01:25.3]} 36. exd5 {[%clk
0:00:22.5]} 36... Rb8 {[%clk 0:01:21.1]} 37. Ba5 {[%clk 0:00:22.6]} 37... Rb7
{[%clk 0:01:20.4]} 38. g3 {[%clk 0:00:22.5]} 38... f4 {[%clk 0:01:16.2]} 39. Kg2
{[%clk 0:00:19.9]} 39... h5 {[%clk 0:01:15.1]} 40. Rh1 {[%clk 0:00:16.9]} 40...
g5 {[%clk 0:01:14.4]} 41. Rf1 {[%clk 0:00:13]} 41... Rbf7 {[%clk 0:01:13.9]} 42.
Re4 {[%clk 0:00:07.7]} 42... fxg3 {[%clk 0:01:09.2]} 43. hxg3 {[%clk 0:00:07.9]}
43... g4 {[%clk 0:01:09.5]} 44. f4 {[%clk 0:00:04.8]} 44... exf4 {[%clk
0:01:07]} 45. gxf4 {[%clk 0:00:05.4]} 45... Kg6 {[%clk 0:01:06.2]} 46. Be1
{[%clk 0:00:05.7]} 46... Kf5 {[%clk 0:01:02]} 47. Re6 {[%clk 0:00:05.2]} 47...
Rf6 {[%clk 0:01:02.1]} 48. Re2 {[%clk 0:00:05.2]} 48... Rh6 {[%clk 0:00:56.9]}
49. Bh4 {[%clk 0:00:04.3]} 49... Bf6 {[%clk 0:00:57.1]} 50. Re5+ {[%clk
0:00:02]} 50... dxe5 {[%clk 0:00:53.9]} 51. fxe5+ {[%clk 0:00:02.9]} 51... Kxe5
{[%clk 0:00:54.8]} 52. Bg3+ {[%clk 0:00:02.4]} 52... Ke4 {[%clk 0:00:54.2]} 53.
Rf4+ {[%clk 0:00:02.6]} 53... Kd3 {[%clk 0:00:53.9]} 54. Rf5 {[%clk 0:00:02.7]}
54... Be7 {[%clk 0:00:53.2]} 55. Rxf8 {[%clk 0:00:02.1]} 55... Bxf8 {[%clk
0:00:54.1]} 56. Bf4 {[%clk 0:00:01.4]} 56... Rg6 {[%clk 0:00:54.2]} 0-1

[Event "*** Titled Tuesday Blitz"]
[Site "Chess.com"]
[Date "2020.10.27"]
[Round "5"]
[White "shnitez"]
[Black "FloMaster111"]
[Result "1-0"]
[WhiteElo "2443"]
[BlackElo "2618"]
[TimeControl "180+1"]
[EndTime "10:56:19 PDT"]
[Termination "shnitez won by checkmate"]

1. c4 {[%clk 0:03:00.9]} 1... e5 {[%clk 0:02:59.2]} 2. Nc3 {[%clk 0:03:00.7]}
2... Nf6 {[%clk 0:02:59.6]} 3. Nf3 {[%clk 0:03:00.8]} 3... Nc6 {[%clk
0:03:00.2]} 4. e3 {[%clk 0:03:01.2]} 4... Be7 {[%clk 0:03:00.7]} 5. Qc2 {[%clk
0:02:56.3]} 5... d5 {[%clk 0:02:57.3]} 6. cxd5 {[%clk 0:02:55.7]} 6... Nxd5
{[%clk 0:02:57.3]} 7. Bb5 {[%clk 0:02:47.1]} 7... Nb4 {[%clk 0:02:42.8]} 8. Qb1
{[%clk 0:02:39.8]} 8... O-O {[%clk 0:02:39.1]} 9. a3 {[%clk 0:02:35.4]} 9... Nd5
{[%clk 0:02:13]} 10. Bxc6 {[%clk 0:02:17.4]} 10... bxc6 {[%clk 0:02:12.9]} 11.
Nxe5 {[%clk 0:02:17.8]} 11... Nxc3 {[%clk 0:02:07]} 12. bxc3 {[%clk 0:02:16.7]}
12... Bd6 {[%clk 0:01:56.3]} 13. Nf3 {[%clk 0:02:12.4]} 13... Ba6 {[%clk
0:01:55.8]} 14. d3 {[%clk 0:02:00.1]} 14... Qf6 {[%clk 0:01:43.8]} 15. Bd2
{[%clk 0:01:39.5]} 15... Qg6 {[%clk 0:01:43.6]} 16. c4 {[%clk 0:01:21.6]} 16...
Qxg2 {[%clk 0:01:33]} 17. Ke2 {[%clk 0:01:21.8]} 17... Qg6 {[%clk 0:01:20.5]}
18. Rg1 {[%clk 0:01:17.3]} 18... Qh5 {[%clk 0:01:20.6]} 19. Rg5 {[%clk
0:00:51.8]} 19... Qh6 {[%clk 0:01:03.3]} 20. Bc3 {[%clk 0:00:41.5]} 20... f6
{[%clk 0:01:02.9]} 21. Ra5 {[%clk 0:00:38.3]} 21... Bc8 {[%clk 0:01:01.5]} 22.
Qg1 {[%clk 0:00:36.5]} 22... c5 {[%clk 0:00:56.1]} 23. Rb1 {[%clk 0:00:29.4]}
23... Bf5 {[%clk 0:00:49.6]} 24. Qg2 {[%clk 0:00:21.1]} 24... Rfd8 {[%clk
0:00:46.3]} 25. e4 {[%clk 0:00:17.5]} 25... Be6 {[%clk 0:00:44.8]} 26. Rg1
{[%clk 0:00:17.2]} 26... Bf8 {[%clk 0:00:37.1]} 27. Bd2 {[%clk 0:00:15.5]} 27...
Qh5 {[%clk 0:00:36.3]} 28. Be3 {[%clk 0:00:15]} 28... Rab8 {[%clk 0:00:32]} 29.
Rb5 {[%clk 0:00:14.1]} 29... Rxb5 {[%clk 0:00:27.5]} 30. cxb5 {[%clk 0:00:15]}
30... c4 {[%clk 0:00:27]} 31. d4 {[%clk 0:00:12.6]} 31... Qxb5 {[%clk
0:00:27.2]} 32. d5 {[%clk 0:00:13.1]} 32... c3+ {[%clk 0:00:26.3]} 33. Ke1
{[%clk 0:00:08.9]} 33... Qb1+ {[%clk 0:00:25.6]} 34. Ke2 {[%clk 0:00:08.5]}
34... Qc2+ {[%clk 0:00:23.3]} 35. Ke1 {[%clk 0:00:07.4]} 35... Bd7 {[%clk
0:00:07.2]} 36. Nd4 {[%clk 0:00:06.4]} 36... Qb1+ {[%clk 0:00:06.1]} 37. Ke2
{[%clk 0:00:06.9]} 37... Qb2+ {[%clk 0:00:05.8]} 38. Kf3 {[%clk 0:00:07.4]}
38... Ba4 {[%clk 0:00:04.9]} 39. Ne6 {[%clk 0:00:05.6]} 39... Re8 {[%clk
0:00:04]} 40. Nxg7 {[%clk 0:00:05.4]} 40... Bxg7 {[%clk 0:00:03.6]} 41. Qxg7#
{[%clk 0:00:05.5]} 1-0